bitfinex-derivatives/quotes_SOLF0:USTF0_20240911
["timestamp","ask_amount","ask_price","bid_price","bid_amount"]
[1726059030642,3.8036,131.45,131.42,3.8043]
[1726059031244,2.7222,131.5,131.4,29.22]
[1726059031648,3.8037,131.45,131.4,29.22]
[1726059031841,3.8037,131.45,131.42,3.8043]
[1726059032944,29.22,131.47,131.28,7.6164]
[1726059033140,29.22,131.47,131.35,29.22]
[1726059033541,29.22,131.47,131.37,3.8055]
[1726059033744,29.22,131.47,131.35,29.22]
[1726059033946,3.8049,131.41,131.37,3.8057]
[1726059034835,3.805,131.4,131.37,3.8057]
[1726059035035,29.22,131.47,131.36,3.806]
[1726059035543,3.8051,131.4,131.37,3.8058]
[1726059036640,3.8047,131.41,131.38,3.8055]
[1726059036846,29.22,131.47,131.35,29.22]
[1726059037151,29.22,131.47,131.38,3.8053]
[1726059037547,29.22,131.47,131.37,29.22]
[1726059037945,29.22,131.47,131.38,3.8054]
[1726059038345,29.22,131.47,131.37,29.22]
[1726059038547,3.8055,131.39,131.35,29.22]
[1726059039152,3.8055,131.39,131.35,33.0261]
[1726059039455,3.8055,131.39,131.35,29.22]
[1726059039750,3.86532597,131.43,131.33,29.22]
[1726059039952,29.22,131.43,131.33,29.22]
[1726059040245,29.22,131.43,131.32,3.8071]
[1726059040246,3.8063,131.36,131.32,3.8071]
[1726059040449,3.74049071,131.42,131.32,3.8071]
[1726059040851,3.8063,131.36,131.32,3.8071]
[1726059041250,3.74049071,131.42,131.31,29.22]
[1726059041453,29.22,131.41,131.31,29.22]
[1726059041845,3.8066,131.35,131.31,29.22]
[1726059042351,29.22,131.39,131.28,29.22]
[1726059042554,4.0519,131.38,131.28,33.0282]
[1726059042851,4.0519,131.38,131.28,29.22]
[1726059043850,4.0519,131.38,131.29,3.8079]
[1726059044050,3.74733475,131.37,131.28,29.22]
[1726059044250,3.808,131.3,131.25,33.029]
[1726059044753,4.0519,131.38,131.27,29.22]
[1726059045557,3.8077,131.31,131.27,33.0287]
[1726059046448,3.8077,131.31,131.27,3.8087]
[1726059046652,3.808,131.3,131.26,3.8089]
[1726059047051,3.8085,131.28,131.24,3.8094]
[1726059047553,29.22,131.34,131.23,29.22]
[1726059047749,3.71763551,131.33,131.23,29.22]
[1726059047946,29.22,131.34,131.23,29.22]
[1726059048953,3.8088,131.27,131.23,33.0298]
[1726059049355,29.22,131.32,131.21,29.22]
[1726059049550,4.1822,131.31,131.21,29.22]
[1726059049746,4.1822,131.31,131.23,29.22]
[1726059049951,2.7483,131.31,131.23,29.22]
[1726059050152,3.8082,131.29,131.25,3.8091]
[1726059050358,2.7483,131.31,131.25,29.22]
[1726059050556,2.837,131.34,131.25,29.22]
[1726059050759,2.837,131.34,131.26,3.8089]
[1726059050955,2.837,131.34,131.25,29.22]
[1726059051152,2.837,131.34,131.21,29.22]
[1726059051153,1.3072,131.36,131.27,29.22]
[1726059051361,3.8069,131.34,131.3,3.8076]
[1726059051664,1.4031,131.38,131.29,29.22]
[1726059051961,1.3072,131.39,131.32,29.22]
[1726059052456,3.8068,131.34,131.29,29.22]
[1726059052860,1.3072,131.39,131.29,29.22]
[1726059053061,1.3072,131.39,131.31,3.8075]
[1726059053263,1.3072,131.39,131.29,29.22]
[1726059053964,1.3072,131.39,131.31,29.22]
[1726059054861,1.4002,131.41,131.31,29.22]
[1726059055062,1.4002,131.41,131.33,29.22]
[1726059055763,1.4002,131.41,131.31,29.22]
[1726059055954,1.4002,131.41,131.29,33.0279]
[1726059056158,29.22,131.4,131.29,33.0279]
[1726059057267,3.8069,131.34,131.29,33.0279]
[1726059057468,29.22,131.4,131.29,29.22]
[1726059057765,29.22,131.38,131.27,29.22]
[1726059057970,29.22,131.38,131.28,3.8084]
[1726059057971,1.4084,131.37,131.28,3.8084]
[1726059058271,3.8075,131.32,131.28,3.8084]
[1726059058466,1.4084,131.37,131.27,29.22]
[1726059058667,1.4084,131.37,131.27,33.0285]
[1726059058858,1.4084,131.37,131.27,29.22]
[1726059059265,3.8071,131.33,131.29,3.808]
[1726059059658,1.4084,131.37,131.27,29.22]
[1726059059870,3.808,131.3,131.2,11.37168665]
[1726059060071,30.6357,131.36,131.24,29.22]
[1726059060267,30.6357,131.36,131.28,3.8083]
[1726059060467,1.4157,131.36,131.26,29.22]
[1726059060972,1.4157,131.36,131.29,3.8081]
[1726059061468,1.4157,131.36,131.26,29.22]
[1726059061469,3.8077,131.31,131.27,3.8086]
[1726059061660,1.4157,131.36,131.26,29.22]
[1726059061861,1.3404,131.35,131.26,29.22]
[1726059062167,3.8076,131.31,131.26,29.22]
[1726059062469,3.8075,131.32,131.28,3.8084]
[1726059062970,1.3404,131.35,131.26,29.22]
[1726059063663,1.3404,131.35,131.28,3.8082]
[1726059064268,1.3404,131.35,131.27,3.8086]
[1726059064571,1.3404,131.35,131.26,29.22]
[1726059065175,1.3404,131.35,131.28,3.8083]
[1726059065476,1.3404,131.35,131.24,29.22]
[1726059065477,30.5604,131.35,131.24,29.22]
[1726059065769,29.22,131.33,131.24,3.8093]
[1726059066572,29.22,131.33,131.25,3.8092]
[1726059066975,3.8084,131.29,131.26,3.809]
[1726059067368,1.3404,131.35,131.24,29.22]
[1726059067369,30.5604,131.35,131.24,29.22]
[1726059067573,3.8075,131.32,131.24,29.22]
[1726059067774,1.3404,131.35,131.26,29.22]
[1726059067974,3.807,131.33,131.29,3.808]
[1726059068876,1.3404,131.35,131.28,29.22]
[1726059069269,3.8075,131.32,131.28,33.0283]
[1726059070373,1.3404,131.35,131.26,29.22]
[1726059070777,30.5604,131.35,131.24,29.22]
[1726059070970,29.22,131.33,131.22,29.22]
[1726059071580,3.8089,131.27,131.23,3.8096]
[1726059071774,3.8089,131.27,131.22,29.22]
[1726059071974,29.22,131.33,131.16,127.26157245]
[1726059072179,3.8089,131.27,131.23,3.8098]
[1726059072880,29.22,131.33,131.22,3.8101]
[1726059073074,29.22,131.31,131.2,29.22]
[1726059073274,1.3005,131.3,131.2,29.22]
[1726059073583,2.6959,131.3,131.2,29.22]
[1726059073774,2.6959,131.3,131.19,3.81046678]
[1726059073975,3.8096,131.24,131.2,3.8106]
[1726059075272,1.3624,131.29,131.19,29.22]
[1726059075477,1.3624,131.29,131.19,33.04534325]
[1726059075673,1.3624,131.29,131.21,29.22]
[1726059075878,3.8088,131.27,131.23,3.8096]
[1726059076074,1.3624,131.29,131.21,3.80096102]
[1726059076288,19.6524,131.29,131.21,3.80096102]
[1726059076580,19.6524,131.29,131.19,18.29]
[1726059076966,3.8098,131.24,131.2,3.8107]
[1726059077377,3.8094,131.25,131.21,3.8104]
[1726059077576,19.6524,131.29,131.19,18.29]
[1726059078280,1.3624,131.29,131.21,18.29]
[1726059078471,3.809,131.26,131.22,3.81]
[1726059078873,1.3624,131.29,131.21,18.29]
[1726059079077,3.8089,131.27,131.23,3.8098]
[1726059079281,1.3624,131.29,131.21,18.29]
[1726059079577,3.8088,131.27,131.21,18.29]
[1726059079777,580.29,131.35,131.23,18.29]
[1726059080084,3.8089,131.27,131.23,3.8098]
[1726059080383,18.29,131.33,131.22,18.29]
[1726059081079,18.29,131.33,131.24,18.29]
[1726059081380,18.29,131.33,131.24,22.0996]
[1726059081880,18.29,131.33,131.23,3.8098]
[1726059082081,18.29,131.33,131.21,18.29]
[1726059082584,18.29,131.31,131.21,18.29]
[1726059082881,3.8096,131.24,131.2,3.8106]
[1726059083080,18.29,131.29,131.19,18.29]
[1726059083271,1.3966,131.28,131.19,18.29]
[1726059083478,3.809,131.26,131.22,3.81]
[1726059083677,1.3966,131.28,131.22,18.29]
[1726059084374,18.29,131.31,131.24,3.8096]
[1726059084775,18.29,131.31,131.22,18.29]
[1726059085381,18.29,131.31,131.23,3.8097]
[1726059086177,18.29,131.31,131.22,18.29]
[1726059086581,3.8095,131.25,131.22,18.29]
[1726059087286,18.29,131.28,131.19,18.29]
[1726059087492,2.671,131.27,131.19,18.29]
[1726059087885,3.8098,131.24,131.2,3.8107]
[1726059088082,2.671,131.27,131.2,3.8107]
[1726059088393,2.671,131.27,131.17,18.29]
[1726059088891,3.8106,131.21,131.18,3.8113]
[1726059089080,18.29,131.26,131.17,18.29]
[1726059089576,3.8101,131.23,131.17,18.29]
[1726059090087,3.8104,131.22,131.18,3.8113]
[1726059090291,2.671,131.27,131.18,18.29]
[1726059090485,2.671,131.27,131.2,18.29]
[1726059090693,2.671,131.27,131.21,3.8102]
[1726059090993,2.671,131.27,131.2,18.29]
[1726059091295,1.3394,131.29,131.2,18.29]
[1726059091483,2.7237,131.31,131.17,3.7284647]
[1726059091681,3.809,131.27,131.22,18.29]
[1726059091986,2.7237,131.31,131.24,18.29]
[1726059092785,3.8083,131.29,131.25,3.8091]
[1726059093095,2.7237,131.31,131.24,18.29]
[1726059093280,2.7237,131.31,131.24,22.0994]
[1726059093281,3.8084,131.28,131.24,22.0994]
[1726059093480,2.7237,131.31,131.22,18.29]
[1726059093686,2.7237,131.31,131.22,22.1001]
[1726059093893,2.7237,131.31,131.22,18.29]
[1726059094195,31.9837,131.31,131.2,33.11019811]
[1726059094887,3.8088,131.27,131.22,29.26]
[1726059095286,3.8086,131.28,131.24,3.8094]
[1726059095494,2.7237,131.31,131.22,29.26]
[1726059095694,1.3493,131.35,131.24,29.26]
[1726059096094,1.3493,131.35,131.2,33.10372142]
[1726059096095,1.3493,131.35,131.27,29.26]
[1726059096400,1.3493,131.35,131.28,3.8083]
[1726059096693,1.3493,131.35,131.25,29.26]
[1726059097289,1.3493,131.35,131.2,33.10372142]
[1726059097290,1.3493,131.35,131.27,29.26]
[1726059097491,3.8073,131.32,131.27,29.26]
[1726059097895,1.3493,131.35,131.27,29.26]
[1726059098495,3.8073,131.32,131.29,3.808]
[1726059098692,3.8073,131.32,131.27,29.26]
[1726059099096,3.8077,131.31,131.27,33.0685]
[1726059099292,1.3493,131.35,131.27,29.26]
[1726059099700,3.8077,131.31,131.27,29.26]
[1726059100799,3.8077,131.31,131.27,33.0686]
[1726059100995,1.3493,131.35,131.25,29.26]
[1726059101201,1.3493,131.35,131.23,29.26]
[1726059101500,3.8089,131.27,131.23,29.26]
[1726059101709,29.26,131.33,131.2,29.26]
[1726059101894,29.26,131.31,131.2,29.26]
[1726059102205,2.7922,131.3,131.2,29.26]
[1726059102408,2.7922,131.3,131.21,3.8102]
[1726059103305,29.26,131.29,131.18,29.26]
[1726059103606,30.6875,131.29,131.18,29.26]
[1726059103809,3.8098,131.24,131.18,29.26]
[1726059103996,3.8098,131.24,131.19,3.8108]
[1726059104807,3.8101,131.23,131.19,3.8108]
[1726059105001,30.6875,131.29,131.18,33.0712]
[1726059105206,29.26,131.27,131.16,29.26]
[1726059105513,3.8105,131.21,131.16,29.26]
[1726059105708,29.26,131.27,131.16,29.26]
[1726059106312,29.26,131.27,131.17,3.8113]
[1726059106705,3.8103,131.22,131.17,3.8113]
[1726059107108,29.26,131.27,131.17,3.8113]
[1726059107316,3.8104,131.22,131.17,3.8113]
[1726059107505,29.26,131.27,131.17,3.8113]
[1726059107709,29.26,131.27,131.18,3.8113]
[1726059108124,29.26,131.27,131.16,29.26]
[1726059108311,3.8107,131.21,131.16,33.0717]
[1726059108506,3.8107,131.21,131.16,29.26]
[1726059109103,29.26,131.27,131.16,29.26]
[1726059109608,29.26,131.27,131.17,3.8114]
[1726059109807,3.8107,131.21,131.17,3.8114]
[1726059110109,29.26,131.27,131.16,29.26]
[1726059110302,29.26,131.27,131.19,3.8108]
[1726059110303,3.8097,131.24,131.19,3.8108]
[1726059110505,29.26,131.27,131.19,3.8108]
[1726059111001,3.8099,131.23,131.19,3.8108]
[1726059111405,3.8099,131.23,131.2,3.8107]
[1726059111611,3.8097,131.24,131.2,3.8107]
[1726059112411,1.4275,131.29,131.18,29.26]
[1726059112810,3.8091,131.26,131.22,3.81]
[1726059113008,1.4275,131.29,131.2,29.26]
[1726059113214,2.7922,131.3,131.2,29.26]
[1726059113410,1.2999,131.33,131.22,29.26]
[1726059113610,2.5964,131.33,131.22,33.1308019]
[1726059113811,2.5964,131.33,131.25,29.26]
[1726059114513,3.8073,131.32,131.25,29.26]
[1726059115514,3.8073,131.32,131.28,3.8082]
[1726059116519,3.8071,131.33,131.25,29.26]
[1726059117222,3.8071,131.33,131.28,3.8082]
[1726059117413,3.8071,131.33,131.25,29.26]
[1726059117613,1.3255,131.38,131.29,29.26]
[1726059117818,1.3255,131.38,131.3,3.8076]
[1726059118018,1.3255,131.38,131.29,29.26]
[1726059118416,1.3255,131.38,131.29,33.068]
[1726059118617,30.5855,131.38,131.27,29.26]
[1726059120319,30.5855,131.38,131.29,3.8079]
[1726059120819,3.8068,131.34,131.3,3.8078]
[1726059121018,30.5855,131.38,131.27,29.26]
[1726059121329,29.26,131.36,131.25,29.26]
[1726059121521,29.26,131.34,131.22,29.26]
[1726059121824,1.3502,131.33,131.22,29.26]
[1726059122218,3.8083,131.29,131.25,3.8092]
[1726059122820,1.4101,131.32,131.22,29.26]
[1726059123622,3.8084,131.28,131.24,3.8094]
[1726059124019,5.2176,131.32,131.22,29.26]
[1726059124219,1.4234,131.35,131.24,29.26]
[1726059124625,1.4234,131.35,131.3,3.8077]
[1726059124828,1.4234,131.35,131.27,29.26]
[1726059126530,31.9634,131.39,131.27,29.26]
[1726059126730,1.4284,131.38,131.27,29.26]
[1726059126930,3.8067,131.34,131.3,3.8076]
[1726059127128,1.4284,131.38,131.3,3.8076]
[1726059127731,1.4284,131.38,131.27,29.26]
[1726059128029,29.26,131.37,131.27,29.26]
[1726059128227,33.02075862,131.37,131.26,3.8089]
[1726059128429,33.02075862,131.37,131.24,29.26]
[1726059128430,29.26,131.35,131.24,29.26]
[1726059128629,3.8086,131.28,131.24,3.8094]
[1726059128935,3.8086,131.28,131.22,29.26]
[1726059129124,33.0809512,131.35,131.22,29.26]
[1726059129325,3.8089,131.27,131.23,3.8097]
[1726059129522,29.26,131.33,131.22,29.26]
[1726059129727,3.8086,131.28,131.24,3.8094]
[1726059130226,4.1307,131.32,131.22,29.26]
[1726059131032,3.8081,131.29,131.25,3.8093]
[1726059131230,4.1307,131.32,131.25,3.8093]
[1726059131429,4.1307,131.32,131.22,29.26]
[1726059132036,3.8084,131.28,131.22,29.26]
[1726059132426,3.8082,131.29,131.25,3.8093]
[1726059132635,4.1307,131.32,131.22,29.26]
[1726059132933,3.8086,131.28,131.23,3.8096]
[1726059133125,4.1307,131.32,131.22,29.26]
[1726059134033,29.26,131.31,131.2,29.26]
[1726059135029,4.1307,131.32,131.2,29.26]
[1726059135537,3.8086,131.28,131.2,29.26]
[1726059135737,4.1307,131.32,131.2,29.26]
[1726059136338,4.1307,131.32,131.22,29.26]
[1726059136733,3.8081,131.29,131.24,3.8094]
[1726059137039,4.1307,131.32,131.24,3.8094]
[1726059137232,3.8086,131.28,131.24,3.8094]
[1726059137941,4.1307,131.32,131.2,29.26]
[1726059138131,29.26,131.31,131.2,29.26]
[1726059138535,29.26,131.31,131.22,3.8099]
[1726059138931,29.26,131.31,131.2,29.26]
[1726059139639,4.1307,131.32,131.2,29.26]
[1726059141141,3.8087,131.27,131.2,29.26]
[1726059141538,3.8085,131.28,131.24,3.8096]
[1726059142241,3.8083,131.29,131.25,3.8091]
[1726059142638,4.1307,131.32,131.25,3.8091]
[1726059143440,4.1307,131.32,131.26,3.8088]
[1726059143640,4.1307,131.32,131.22,29.26]
[1726059144039,3.8084,131.29,131.22,29.26]
[1726059144242,3.8084,131.29,131.25,3.8091]
[1726059144439,18.28,131.31,131.19,3.81944882]
[1726059144638,18.28,131.31,131.09,34.2813]
[1726059144639,3.808,131.3,131.25,18.28]
[1726059144945,4.1307,131.32,131.25,18.28]
[1726059145148,3.8083,131.29,131.25,22.0891]
[1726059145743,4.1307,131.32,131.24,3.8094]
[1726059146140,3.8088,131.27,131.24,3.8094]
[1726059146438,4.1307,131.32,131.21,18.28]
[1726059146636,18.28,131.31,131.21,18.28]
[1726059146844,18.28,131.31,131.23,3.8098]
[1726059147244,18.28,131.31,131.21,18.28]
[1726059147437,18.28,131.31,131.21,22.0903]
[1726059147639,18.28,131.31,131.21,18.28]
[1726059147951,4.1307,131.32,131.21,18.28]
[1726059148448,3.8083,131.29,131.26,3.8088]
[1726059148941,3.8085,131.28,131.23,18.28]
[1726059149144,3.8085,131.28,131.24,3.8093]
[1726059149344,4.1307,131.32,131.23,18.28]
[1726059149748,3.8083,131.29,131.25,3.8091]
[1726059150052,4.1307,131.32,131.23,18.28]
[1726059150247,4.1307,131.32,131.23,29.24]
[1726059151544,3.8083,131.29,131.25,3.8091]
[1726059153047,3.8084,131.28,131.25,3.8091]
[1726059154246,3.8084,131.28,131.24,3.8096]
[1726059155645,3.8088,131.27,131.23,33.0497]
[1726059155846,33.3707,131.32,131.2,29.24]
[1726059156443,3.8094,131.25,131.2,29.24]
[1726059156846,3.8094,131.25,131.21,3.8102]
[1726059157157,33.3707,131.32,131.2,29.24]
[1726059157547,33.3707,131.32,131.22,3.81]
[1726059157743,3.8092,131.26,131.22,3.81]
[1726059159362,3.8089,131.27,131.2,29.24]
[1726059159556,4.1307,131.32,131.22,29.24]
[1726059160266,3.8084,131.28,131.24,3.8094]
[1726059165166,3.8082,131.29,131.25,3.8091]
[1726059165366,2.7527,131.32,131.25,29.24]
[1726059165665,2.7527,131.32,131.27,3.8087]
[1726059165871,1.4093,131.36,131.27,29.24]
[1726059166056,4.1804,131.36,131.29,29.24]
[1726059166357,224.0,131.42,131.31,29.24]
[1726059166549,4.1274,131.41,131.33,29.24]
[1726059166754,4.1274,131.41,131.33,32.97428331]
[1726059167152,2.7711,131.41,131.33,32.97428331]
[1726059167364,3.805,131.4,131.36,3.8059]
[1726059167663,1.3563,131.44,131.35,29.24]
[1726059167857,1.3563,131.44,131.37,29.24]
[1726059168864,3.8044,131.42,131.38,3.8053]
[1726059169766,3.8042,131.43,131.38,3.8053]
[1726059170864,3.8042,131.43,131.39,3.8052]
[1726059171166,3.8039,131.44,131.37,29.24]
[1726059171367,3.8039,131.44,131.4,29.24]
[1726059172356,3.8041,131.43,131.4,29.24]
[1726059172560,120.3539591,131.46,131.4,29.24]
[1726059172967,3.804,131.44,131.4,33.0449]
[1726059173464,120.3539591,131.46,131.4,29.24]
[1726059173661,4.0734,131.48,131.4,29.24]
[1726059175461,3.8038,131.44,131.4,33.0448]
[1726059176165,4.0734,131.48,131.41,18.26]
[1726059176756,2.8258,131.52,131.43,18.26]
[1726059177257,2.8258,131.52,131.44,3.8037]
[1726059177258,3.8028,131.48,131.44,3.8037]
[1726059177463,2.8258,131.52,131.45,18.26]
[1726059177865,3.8026,131.49,131.45,22.0634]
[1726059178271,2.8258,131.52,131.45,22.0634]
[1726059178465,3.8027,131.48,131.45,22.0634]
[1726059178770,2.8258,131.52,131.45,18.26]
[1726059178973,3.8028,131.48,131.45,18.26]
[1726059179465,3.8028,131.48,131.45,22.0633]
[1726059179664,3.8025,131.49,131.45,22.0633]
[1726059180171,3.8025,131.49,131.46,3.8032]
[1726059180358,3.8026,131.48,131.45,18.26]
[1726059180765,2.8258,131.52,131.45,18.26]
[1726059182661,2.8258,131.52,131.45,22.0634]
[1726059183062,2.8258,131.52,131.45,18.26]
[1726059183772,2.8258,131.52,131.45,22.0634]
[1726059183973,2.8258,131.52,131.45,18.26]
[1726059184473,3.8028,131.48,131.45,18.26]
[1726059185061,3.8028,131.48,131.43,3.72280528]
[1726059185062,2.8258,131.52,131.43,18.26]
[1726059186775,2.8258,131.52,131.45,18.26]
[1726059186970,2.8258,131.52,131.47,18.26]
[1726059187170,2.8258,131.52,131.47,22.0629]
[1726059187171,3.8022,131.5,131.47,22.0629]
[1726059187962,3.8019,131.51,131.47,18.26]
[1726059188474,3.8016,131.52,131.49,18.26]
[1726059189270,3.8013,131.53,131.49,18.26]
[1726059189470,4.0554,131.58,131.49,18.26]
[1726059189673,3.8013,131.53,131.51,18.26]
[1726059189969,4.0554,131.58,131.51,18.26]
[1726059190378,3.8011,131.54,131.51,18.26]
[1726059190775,4.0554,131.58,131.53,18.26]
[1726059192371,4.0554,131.58,131.51,18.26]
[1726059192774,3.8012,131.53,131.51,18.26]
[1726059193875,3.8015,131.52,131.51,18.26]
[1726059195071,4.0554,131.58,131.51,18.26]
[1726059195781,3.8015,131.52,131.51,18.26]
[1726059196977,4.0554,131.58,131.51,18.26]
[1726059197484,3.8012,131.53,131.51,18.26]
[1726059199389,3.801,131.54,131.51,22.0617]
[1726059199681,3.801,131.54,131.53,18.26]
[1726059199879,3.8008,131.55,131.53,18.26]
[1726059200475,4.0554,131.58,131.53,18.26]
[1726059201775,3.8,131.57,131.55,18.26]
[1726059202881,1.3537,131.64,131.56,18.26]
[1726059203089,1.3537,131.64,131.58,18.26]
[1726059203272,1.4008,131.65,131.58,18.26]
[1726059203579,1.4008,131.65,131.61,18.26]
[1726059203784,3.7981,131.64,131.61,18.26]
[1726059203979,1.4008,131.65,131.61,18.26]
[1726059204281,5.1986,131.65,131.62,18.26]
[1726059204584,1.4008,131.65,131.62,18.26]
[1726059204785,1.3246,131.66,131.62,18.26]
[1726059205081,3.7976,131.66,131.62,22.0584]
[1726059205385,3.7976,131.66,131.62,18.26]
[1726059205880,3.7978,131.65,131.62,18.26]
[1726059206180,120.3580831,131.68,131.59,18.26]
[1726059206581,3.75579792,131.67,131.59,18.26]
[1726059206773,138.6180831,131.68,131.59,18.26]
[1726059207082,120.3580831,131.68,131.6,3.7989]
[1726059207386,120.3580831,131.68,131.59,18.26]
[1726059207587,120.3580831,131.68,131.57,3.82493469]
[1726059207588,120.3580831,131.68,131.62,3.7986]
[1726059208289,3.798,131.65,131.61,18.26]
[1726059208681,4.0311,131.71,131.63,18.26]
[1726059209487,3.7978,131.65,131.63,18.26]
[1726059210179,4.0311,131.71,131.63,18.26]
[1726059210780,3.798,131.64,131.57,3.82493469]
[1726059210982,18.26,131.7,131.61,18.26]
[1726059212489,3.7988,131.62,131.59,18.26]
[1726059212989,18.26,131.68,131.59,18.26]
[1726059213384,1.3699,131.65,131.59,22.0594]
[1726059213887,1.3699,131.65,131.61,18.26]
[1726059214483,3.7982,131.64,131.61,18.26]
[1726059214888,1.3699,131.65,131.45,15.15318339]
[1726059215090,1.3699,131.65,131.59,18.26]
[1726059215280,1.4014,131.64,131.59,18.26]
[1726059215484,3.7992,131.6,131.59,18.26]
[1726059216584,3.7989,131.61,131.59,18.26]
[1726059216980,1.3699,131.65,131.59,18.26]
[1726059217187,1.3699,131.65,131.61,18.26]
[1726059217890,3.7988,131.62,131.61,18.26]
[1726059218391,1.3452,131.7,131.61,18.26]
[1726059218582,2.7804,131.69,131.63,18.26]
[1726059219188,3.7979,131.65,131.63,18.26]
[1726059219395,2.7804,131.69,131.63,18.26]
[1726059220988,3.7976,131.66,131.63,22.0581]
[1726059221391,2.7804,131.69,131.63,18.26]
[1726059221590,3.798,131.64,131.63,18.26]
[1726059223994,3.7979,131.65,131.63,18.26]
[1726059224195,2.7804,131.69,131.63,18.26]
[1726059224601,3.7976,131.66,131.65,18.26]
[1726059224906,2.7804,131.69,131.65,18.26]
[1726059225407,3.80737082,131.75,131.67,18.26]
[1726059225598,5.16535729,131.74,131.67,18.26]
[1726059225798,3.9979,131.74,131.67,18.26]
[1726059226502,3.7968,131.68,131.67,18.26]
[1726059228715,3.7976,131.66,131.65,18.26]
[1726059230012,3.7972,131.67,131.65,18.26]
[1726059230607,3.7974,131.66,131.65,18.26]
[1726059231007,3.9979,131.74,131.65,18.26]
[1726059231506,3.9979,131.74,131.65,22.0575]
[1726059232213,3.7967,131.69,131.65,22.0575]
[1726059232403,3.7967,131.69,131.67,18.26]
[1726059233508,3.9979,131.74,131.67,22.057]
[1726059233707,3.9979,131.74,131.7,18.26]
[1726059234311,3.7962,131.71,131.7,18.26]
[1726059234609,345.588,131.78,131.7,18.26]
[1726059234610,7.588,131.78,131.7,18.26]
[1726059234809,2.7888,131.77,131.7,18.26]
[1726059235014,3.7958,131.72,131.7,18.26]
[1726059235216,2.7888,131.77,131.7,18.26]
[1726059236310,3.796,131.71,131.7,18.26]
[1726059236613,2.7888,131.77,131.7,18.26]
[1726059236812,3.7959,131.72,131.7,18.26]
[1726059237119,2.7888,131.77,131.7,18.26]
[1726059237319,3.7956,131.73,131.72,18.26]
[1726059238018,3.7951,131.74,131.72,18.26]
[1726059238512,2.7888,131.77,131.72,18.26]
[1726059239214,3.7953,131.74,131.72,18.26]
[1726059239417,2.7888,131.77,131.72,18.26]
[1726059239917,3.7954,131.73,131.72,18.26]
[1726059241014,3.796,131.71,131.7,18.26]
[1726059241314,2.7888,131.77,131.7,18.26]
[1726059242111,3.796,131.71,131.7,18.26]
[1726059242714,28.6668,131.77,131.58,7.5989]
[1726059242908,28.6668,131.77,131.66,18.26]
[1726059243110,7.5892,131.76,131.66,18.26]
[1726059243418,7.5892,131.76,131.59,18.26]
[1726059243419,18.26,131.75,131.59,18.26]
[1726059243627,18.26,131.75,131.64,18.26]
[1726059243819,18.26,131.73,131.64,18.26]
[1726059244118,3.7977,131.65,131.64,18.26]